Cogmind - Beta 13 @@@ ROGUE MODE // 2024.04.28 @ 20:10:42 Player: Ivanna Dostya Result: Destroyed by as-52868 with Assembled Rifle Performance ------------- Evolutions (0) 0 Regions Visited (2) 400 Robots Destroyed (17) 85 Value Destroyed (427) 427 Prototype IDs (0) 0 Alien Tech Used (0) 0 Bonus (0) 0 TOTAL SCORE: 912 Bonus ------- None Cogmind --------- Core Integrity 0/250 Matter 300/300 Energy 125/125 System Corruption 1% Temperature Cool (0) Movement Treading (160) Location -10/Mines Parts ------- > --- POWER (1) -------- Light Ion Engine > --- PROPULSION (2) --- Light Treads Light Treads > --- UTILITY (2) ------ Medium Storage Unit Light Armor Plating > --- WEAPON (2) ------- Medium Laser Light Cannon > --- INVENTORY (10) --- Improved Heat Sink Seismic Detector Light Armor Plating Small Laser Grenade Launcher Grenade Launcher Peak State ------------ > --- POWER ------------ Ion Engine > --- PROPULSION ------- Light Treads Wheel > --- UTILITY ---------- Medium Storage Unit Light Armor Plating > --- WEAPON ----------- Medium Laser Light Cannon > --- INVENTORY -------- Light Ion Engine Small Storage Unit Seismic Detector Light Armor Plating Light Armor Plating Light Armor Plating Small Laser Grenade Launcher Grenade Launcher Grenade Launcher [Rating: 8] Favorites ----------- Power Ion Engine Engine Ion Engine Propulsion Light Treads Treads Light Treads Leg Aluminum Leg Wheel Wheel Utility Medium Storage Unit Device Seismic Detector Storage Medium Storage Unit Protection Light Armor Plating Weapon Medium Laser Energy Gun Medium Laser Ballistic Gun Light Assault Rifle Ballistic Cannon Light Cannon Launcher Grenade Launcher Build | -11 -10 -10 ------- Run | Yrd Mat Min Slots Evolved . | . . . Power . | . . . Propulsion . | . . . Utility . | . . . Weapon . | . . . Parts Attached 23 | 7 11 5 Power 2 | 1 . 1 Engine 2 | 1 . 1 Core . | . . . Reactor . | . . . Propulsion 6 | 2 3 1 Treads 3 | . 2 1 Leg 1 | . 1 . Wheel 2 | 2 . . Hover . | . . . Flight . | . . . Utility 8 | 2 5 1 Device 2 | 1 1 . Storage 2 | 1 1 . Processor . | . . . Hackware . | . . . Protection 4 | . 3 1 Artifact . | . . . Weapon 7 | 2 3 2 Energy Gun 4 | 1 2 1 Energy Cannon . | . . . Ballistic Gun 1 | 1 . . Ballistic Cannon 1 | . 1 . Launcher 1 | . . 1 Special Weapon . | . . . Impact Weapon . | . . . Slashing Weapon . | . . . Piercing Weapon . | . . . Special Melee Weapon . | . . . Unidentified Prototypes . | . . . Parts Lost 6 | . 2 4 Power 1 | . . 1 Propulsion 2 | . 1 1 Utility 1 | . . 1 Weapon 2 | . 1 1 Highest Loss Streak 4 | . 2 4 To Critical Strikes . | . . . Average Slot Usage (%) 99 | . 99 99 Engine 13 | . 14 13 Treads 14 | . 12 21 Leg 3 | . 2 6 Wheel 10 | . 13 . Device 4 | . 6 . Storage 14 | . 14 14 Protection 8 | . 7 14 Energy Gun 13 | . 14 13 Ballistic Gun 1 | . 1 . Ballistic Cannon 12 | . 12 14 Naked Turns . | . . . Heaviest Build 24 | 14 23 24 Greatest Support 40 | 20 20 40 Greatest Overweight (x) 2 | . 2 1 Average Overweight (x) . | . . . Largest Inventory Capacity 10 | 8 10 10 Average Capacity 9 | 7 9 10 Most Carried 10 | 2 10 10 Average Carried 7 | 1 8 7 Final Capacity 10 | 8 10 10 Final Carried 10 | 2 10 6 Class Distribution -------------------- 100% | Mutant Dominant Class ---------------- Mutant | -10/Materials Mutant | -10/Mines Resources | -11 -10 -10 ----------- Run | Yrd Mat Min Matter Collected 577 | 276 197 104 Remotely . | . . . Salvage Created 536 | 122 337 77 Parts 34 | 6 23 5 Haulers Intercepted 1 | . 1 . Recyclers Shooed . | . . . Parts Field Recycled . | . . . Retrieved Matter . | . . . Parts Self-Destructed . | . . . Prevented . | . . . Kills | -11 -10 -10 ------- Run | Yrd Mat Min Combat Hostiles Destroyed 13 | . 11 2 Guns 6 | . 5 1 Cannons 7 | . 6 1 Classes Destroyed 6 | 2 4 . Tunneler 1 | 1 . . Hauler 1 | . 1 . Recycler 1 | 1 . . Operator 1 | . 1 . Swarmer 3 | . 3 . Grunt 10 | . 8 2 Best Kill Streak 3 | 2 3 2 Combat Bots Only 3 | . 3 2 Max Kills in Single Turn 1 | 1 1 1 Gunslinging . | . . . Exploded . | . . . Melee . | . . . Uniques/NPCs Destroyed . | . . . Combat | -11 -10 -10 -------- Run | Yrd Mat Min Hostile Shots Fired 78 | . 57 21 Missed 18 | . 16 2 Damage Taken 1017 | . 465 552 Core 257 | . 94 163 Absorbed by Shields . | . . . Core Remaining (%) 100 | 100 . . Volleys Fired 55 | 6 40 9 Largest 2 | 2 2 2 Hottest 85 | 70 85 85 Shots Fired 105 | 12 76 17 Gun 68 | 12 49 7 Cannon 36 | . 27 9 Launcher 1 | . . 1 Special . | . . . Kinetic 51 | 6 36 9 Thermal 53 | 6 40 7 Explosive 1 | . . 1 Electromagnetic . | . . . Robot Hit Streak 14 | 4 7 14 Robot Miss Streak 5 | 1 5 3 Penetration Max . | . . . Secondary Targets . | . . . Shots Hit Robots 63 | 8 44 11 Core Hits 28 | 3 19 6 Critical Kills . | . . . Critical Parts Destroyed . | . . . Critical Strikes 6 | . 4 2 Burn 5 | . 4 1 Blast 1 | . . 1 Melee Attacks . | . . . Impact . | . . . Slashing . | . . . Piercing . | . . . Sneak Attacks . | . . . Combat Hostiles . | . . . Follow-up Attacks . | . . . Damage Inflicted 1002 | 83 679 240 Guns 535 | 83 389 63 Cannons 384 | . 275 109 Explosions 67 | . . 67 Melee . | . . . Ramming 16 | . 15 1 Kinetic 453 | 32 312 109 Thermal 466 | 51 352 63 Explosive 67 | . . 67 Electromagnetic . | . . . Impact . | . . . Slashing . | . . . Piercing . | . . . Highest Corruption 1 | . 1 1 Average Corruption 1 | . 1 1 Corruption Purged . | . . . Corruption Blocked . | . . . Effects 4 | . 2 2 Matter Fused 1 | . 1 . Heat Flow Errors 2 | . . 2 Energy Discharges 1 | . 1 . Overload Shots . | . . . Overflow Damage . | . . . Projectiles . | . . . Explosions . | . . . Melee . | . . . Knockbacks 5 | . 3 2 Impact . | . . . Kinetic 5 | . 3 2 Secondary . | . . . Self-Inflicted Damage 28 | . 7 21 Shots 1 | . . 1 Rammed 4 | . 3 1 Targets Rammed 4 | . 3 1 Kicked . | . . . Crushed . | . . . Highest Temperature 305 | 90 305 225 Average Temperature 100 | 47 108 94 Received Heat Transfer 306 | . 246 60 Effects 3 | . 3 . Interference 3 | . 3 . Siege Activations . | . . . Robots Corrupted . | . . . Combat Hostiles . | . . . Parts Fried . | . . . Impact Corruptions . | . . . Robots Melted . | . . . Combat Hostiles . | . . . Parts Melted 4 | 1 3 . Heat Transferred 1715 | 148 1308 259 Parts Sabotaged . | . . . Parts Stolen . | . . . Parts Stripped . | . . . Power Chain Reactions . | . . . Alert | -11 -10 -10 ------- Run | Yrd Mat Min Peak Influence 234 | 10 234 61 Initial 6 | . 6 . Average 91 | 2 111 32 Maximum Alert Level 1 | . 1 . Low Security (%) 86 | 100 82 100 Level 1 13 | . 17 . Level 2 . | . . . Level 3 . | . . . Level 4 . | . . . Level 5 . | . . . High Security . | . . . Max Security . | . . . Squads Dispatched 4 | . 4 . Investigation 2 | . 2 . Extermination . | . . . Reinforcement 2 | . 2 . Assault . | . . . Garrison . | . . . Intercept . | . . . Searches Triggered . | . . . Construction Impeded . | . . . Haulers Reinforced . | . . . Active Scanning Responses . | . . . Cargo Convoy Interrupts . | . . . Stealth | -11 -10 -10 --------- Run | Yrd Mat Min Distress Signals 2 | . 2 . Communications Jammed . | . . . Distress Signals . | . . . Times Spotted 29 | . 16 13 Peak Tracking Total 6 | . 4 6 Tactical Retreats 1 | . 1 . Traps | -11 -10 -10 ------- Run | Yrd Mat Min Traps Triggered 1 | . 1 . Indirectly . | . . . Trap Hack Attempts . | . . . Triggered . | . . . Disarmed . | . . . Reprogrammed . | . . . Reused . | . . . Traps Extracted . | . . . Installed . | . . . Triggered . | . . . Machines | -11 -10 -10 ---------- Run | Yrd Mat Min Machines Disabled . | . . . Max in Single Turn . | . . . Machines Repaired . | . . . Machines Dismantled . | . . . Machines Sabotaged . | . . . Overloaded Fab Kills . | . . . Hacking | -11 -10 -10 --------- Run | Yrd Mat Min Machines Accessed 5 | . 5 . Terminals 3 | . 3 . Fabricators . | . . . Repair Stations . | . . . Recycling Units 2 | . 2 . Scanalyzers . | . . . Garrison Access . | . . . Total Hacks 12 | . 12 . Successful 4 | . 4 . Failed 8 | . 8 . Catastrophic 3 | . 3 . Database Lockouts . | . . . Manual 8 | . 8 . Terminals 9 | . 9 . Fabricators . | . . . Repair Stations . | . . . Recycling Units 3 | . 3 . Scanalyzers . | . . . Garrison Access . | . . . Terminal Hacks 1 | . 1 . Alert Level 1 | . 1 . Fabricator Hacks . | . . . Repair Station Hacks . | . . . Recycling Unit Hacks 2 | . 2 . Retrieve Components 2 | . 2 . Scanalyzer . | . . . Garrison Access Hacks . | . . . Unauthorized Hacks 1 | . 1 . Terminals 1 | . 1 . Botnet 1 | . 1 . Fabricators . | . . . Repair Stations . | . . . Recycling Units . | . . . Scanalyzers . | . . . Garrison Access . | . . . Data Cores Recovered . | . . . Used . | . . . Hacking Detections 3 | . 3 . Full Trace Events 2 | . 2 . Feedback Events . | . . . Feedback Blocked . | . . . Robot Schematics Acquired . | . . . Robots Built . | . . . Authchips . | . . . Time . | . . . Total Robot Build Rating . | . . . Part Schematics Acquired . | . . . Parts Built . | . . . Authchips . | . . . Time . | . . . Total Part Build Rating . | . . . Parts Repaired . | . . . Time . | . . . Parts Recycled . | . . . Recycled Matter . | . . . Retrieved Matter . | . . . Retrieved Components . | . . . Parts Scanalyzed . | . . . Part Schematics Acquired . | . . . Parts Damaged . | . . . Bothacking | -11 -10 -10 ------------ Run | Yrd Mat Min Used RIF Installer . | . . . Robots Hacked . | . . . Non-combat . | . . . Combat . | . . . Robot Hacks Applied . | . . . Relay Couplers Released . | . . . Fabnet Peak Effective % . | . . . Robots Rewired . | . . . Allies Hacked . | . . . Hacks Repelled . | . . . Allies | -11 -10 -10 -------- Run | Yrd Mat Min Total Allies . | . . . Largest Group . | . . . Highest-Rated Group . | . . . Highest-Rated Ally . | . . . Total Orders . | . . . Ally Attacks . | . . . Total Damage . | . . . Kills . | . . . Allies Corrupted . | . . . Allies Melted . | . . . Intel | -11 -10 -10 ------- Run | Yrd Mat Min Robot Analysis Total . | . . . Derelict Logs Recovered 1 | . . 1 Drone Launches . | . . . Drone Recoveries . | . . . Exploration | -11 -10 -10 ------------- Run | Yrd Mat Min Turns Passed 1129 | 58 868 203 Spaces Moved 502 | 36 376 90 Core 1 | 1 . . Treads 306 | . 216 90 Legs 43 | . 43 . Wheels 152 | 35 117 . Hover . | . . . Flight . | . . . Fastest Speed 50 | 50 80 160 Average Speed 178 | 79 186 184 Slowest Speed 260 | 80 260 240 Overloaded Moves . | . . . Propulsion Burnouts . | . . . Robots Hopped . | . . . Cave-ins Triggered . | . . . Exploration Rate (%) 30 | 3 67 21 Regions Visited 2 Branch Regions 1 Pre-discovered Areas . | . . . Known Exits Taken . | . . . Unknown Exits Taken 2 | 1 1 . Scrap Searched . | . . . Spaces Dug 11 | . . 11 Terrain Destroyed 11 | . . 11 Melee . | . . . Projectile . | . . . AOE 11 | . . 11 Terrain Rammed . | . . . Walls Destroyed . | . . . Machines Disabled . | . . . Actions | -11 -10 -10 --------- Run | Yrd Mat Min Total 628 | 51 469 108 Wait 26 | . 25 1 Move 500 | 35 375 90 Hop . | . . . Pick Up 13 | 3 9 1 Fast Attach 11 | 6 5 . Attach 6 | 1 1 4 Detach . | . . . Swap 6 | . 5 1 Drop 7 | . 6 1 Fire 55 | 6 40 9 Melee . | . . . Ram 3 | . 3 . Kick . | . . . Crush 1 | . . 1 Escape Stasis . | . . . Rewire . | . . . Trap . | . . . Miscellaneous . | . . . Route ------- -11/Scrapyard -10/Materials (discovered 3 exits: [*Mat x2] / [*Min]) -10/Mines History --------- Turn | Location | Event 15 | -11/Scrapyard | Discovered new exit (range 15) 59 | -11/Scrapyard | Entered Materials 218 | -10/Materials | Discovered new exit (range 4) 300 | -10/Materials | Build established: Mutant 708 | -10/Materials | Discovered new exit (range 10) 794 | -10/Materials | Discovered new exit (range 6) 927 | -10/Materials | Entered Mines 974 | -10/Mines | Met a Derelict bent on vengeance 989 | -10/Mines | Learned location of 1 exit from Materials 1002 | -10/Mines | Assembled infested the area 1020 | -10/Mines | Core integrity fell below 50% 1025 | -10/Mines | Core integrity fell below 20% 1053 | -10/Mines | Lost 4 parts (1p1n1u1w) 1130 | -10/Mines | Destroyed by as-52868 with Assembled Rifle Last Messages --------------- 01025_ D-53 Grenadier knocked back. 01026_ K-01 Serf cleans the Core Extractor. 01026_ K-01 Serf collects debris. 01026_ D-53 Grenadier destroyed. 01028_ The unstable cave ceiling collapses. 01029_ K-01 Serf collects debris. 01030_ The unstable cave ceiling collapses. 01030_ K-01 Serf collects debris. 01035_ The unstable cave ceiling collapses. 01036_ K-01 Serf collects debris. 01038_ U-05 Engineer lays Concrete. 01039_ Acquired 4 matter. 01040_ K-01 Serf collects debris. 01042_ Acquired 1 matter. 01043_ The unstable cave ceiling collapses. 01045_ Acquired 27 matter. 01046_ The unstable cave ceiling collapses. 01047_ Acquired 7 matter. 01079_ Extracted 13 matter. 01090_ System corrupted: Heat flow error (+223). Map ----- +----------------------------------------------------+ | ??????????????????????? #??????????????? | | ??????????????????????? ??????????????? | | ??????????????????????? ??###?????????? | | ???????????????????????# ?????????? | | ???????????????????????# """ ??????????? | | ?????????????[?????###?# """ ##?????????? | | ?????????????%= ???? ## """ #?????????? | | ?????????????#%= ??## # * #?????????? | | ??????????????#= ## #?????????? | | ?????????????## # = #??????????? | | ?????????????# #=% ##?????????? | | ?????????????# ##%= ##????????? | | ????????????## !%*# #????????? | | ????????????# # ### !| #????????? | | ???????????# ## ##????????? | | ???????????# #????????? | | ???????????# # ## #????????? | | ???????????## ##????????? | | ????????????### ##?????????? | | ??????????????## #######a##??????????? | | ???????????????## #?###### ####????????? | | ????????????????###??# #????????? | | ?????????????????????# #????????? | | ?????????????????????# #????????? | | ???????#########?????# #????????? | | ???????# #?????### @######????????? | | ???????# !!! #???????# ##### ##??????? | | ???????# !! ! #???????# #??????? | | ???????# ! !! ######### #??????? | | ???????# !!! ##### ##??????? | | ???????# #?????????????? | | ???????## ############?????????????? | | ????????# #????????????????????????? | | ????????########????????????????????????? | | ????????????????????????????????????????? | | ????????????????????????????????????????? | | ????????????????????????????????????????? | | | | | | | | | | | | | | | | | | | | | | | | | | | +----------------------------------------------------+ Best States ------------- Heat Dissipation 25 Energy Generation 10 Energy Capacity 250 Matter Stores 300 Matter Capacity 300 Sight Range 16 Terrain Scan Density 10 Armor Coverage 150 Evasion (%) 44 Recoil Reduction 2 Item Schematics ----------------- None Robot Schematics ------------------ None Fabricated ------------ Nothing Alien Tech Used ----------------- None Achievements -------------- None Challenges ------------ None Game ------ Seed LargeContainmentProjector Manual? 0 Play Time 00:11:24 Cumulative 21.8 hours Start 2024.04.28 @ 20:01:13 End 2024.04.28 @ 20:10:42 Sessions 1 Manual Loads 0 Difficulty Rogue Special Mode None Game No. 21 Rogue 19 Adventurer 2 Explorer 0 Win Type - Total 0 Types 0/0/0/0/0/0/0/0/0 Lore% 20 Gallery% 29 Achievement% 26 Wizard Run 0 Options --------- Layout 1 ASCII 0 Keyboard 0 Movement Numpad Keybinds 1 Fullscreen 2 Font 24/Smallcaps Map View 50x35 Zoom Use 0% Tactical HUD 1 Map Filters NONE Filters NONE Steam 1 RUN: 316bd22c-0722-4ed4-847b-1b5875821f2d